Cogmind - Beta 9.6 @@@ ROGUE MODE // 2020.05.17 @ 15:55:37 Player: Tone Result: Destroyed by G-73 Enforcer with Heavy Laser Performance ------------- Evolutions (9) 4500 Regions Visited (29) 5800 Robots Destroyed (372) 1860 Value Destroyed (23902) 23902 Prototype IDs (44) 880 Alien Tech Used (0) 0 Bonus (13497) 13497 TOTAL SCORE: 50439 Bonus ------- Triggered Max Security 1000 High Alert Combat Kills 1653 Follower Combat Kills 11612 Entered Garrisons 2000 Used RIF Installer 5000 Aligned with FarCom 300 Friendly Fire -8068 Cogmind --------- Core Integrity 0/1600 Matter 290/300 Energy 81/100 System Corruption 9% Temperature Cool (9) Movement Core (50) Location -1/Access Parts ------- > --- POWER (1) -------- (None) > --- PROPULSION (2) --- (None) > --- UTILITY (20) ----- Relay Coupler [Demolisher] (44) > --- WEAPON (2) ------- (None) > --- INVENTORY (4) ---- AWS/Thermal Peak State ------------ > --- POWER ------------ Enhanced Fission Core > --- PROPULSION ------- Armored Wheel Armored Wheel > --- UTILITY ---------- High-capacity Storage Unit High-capacity Storage Unit High-capacity Storage Unit High-capacity Storage Unit Humpback Humpback Advanced Transmission Jammer Layered Heavy Armor Plating Relay Coupler [Swarmer] Relay Coupler [Swarmer] Relay Coupler [Grunt] Relay Coupler [Grunt] Relay Coupler [Duelist] Relay Coupler [Sentry] Relay Coupler [Sentry] Relay Coupler [Hunter] Relay Coupler [Behemoth] > --- WEAPON ----------- Enhanced Nova Cannon Field Lobotomy Kit > --- INVENTORY -------- Graviton Reactor Quantum Reactor Armored Wheel Armored Wheel Advanced Cooling System Advanced Cooling System Improved Coolant Injector Large Storage Unit Large Storage Unit Compact Battery Improved Energy Well Long-range Terrain Scanner Advanced Armor Integrity Analyzer Energy Filter Advanced Transmission Jammer Improved Utility Shielding Medium Reactive Plating Advanced Focal Shield Advanced Thermal Shield Advanced Force Field Improved Remote Shield Antimissile System Hacking Suite Relay Coupler [NC] Relay Coupler [NC] Relay Coupler [NC] Relay Coupler [NC] Relay Coupler [NC] Relay Coupler [NC] Relay Coupler [NC] Relay Coupler [Swarmer] Relay Coupler [Swarmer] Relay Coupler [Swarmer] Relay Coupler [Swarmer] Relay Coupler [Swarmer] Relay Coupler [Swarmer] Relay Coupler [Swarmer] Relay Coupler [Grunt] Relay Coupler [Grunt] Relay Coupler [Grunt] Relay Coupler [Brawler] Relay Coupler [Duelist] Relay Coupler [Duelist] Relay Coupler [Duelist] Relay Coupler [Duelist] Relay Coupler [Sentry] Relay Coupler [Sentry] Relay Coupler [Sentry] Relay Coupler [Sentry] Relay Coupler [Demolisher] Relay Coupler [Demolisher] Relay Coupler [Specialist] Relay Coupler [Specialist] Improved Component Analysis Suite System Backup Module Improved Recalibrator Backup Laser VII AWS/Thermal Improved EM Pulse Cannon HERF Cannon Latent Energy Streamer Enhanced Nova Cannon Enhanced Nova Cannon Enhanced Nova Cannon Heavy Shock Bomb Launcher Micro-nuke Launcher Advanced Remote Datajack Advanced Remote Datajack Advanced Remote Datajack Power Sword [Rating: 124] Favorites ----------- Power Enhanced Fission Core Engine Ion Engine Power Core Enhanced Fission Core Reactor Antimatter Reactor Propulsion Armored Wheel Treads Light Treads Leg Aluminum Leg Wheel Armored Wheel Hover Unit Gyrokinetic Inverter Utility Humpback Device Improved Cooling System Storage Humpback Processor Transport Network Coupler Hackware Relay Coupler [Grunt] Protection Medium Reactive Plating Weapon Advanced Remote Datajack Energy Gun EM Shotgun Energy Cannon Improved EM Pulse Cannon Ballistic Gun Light Assault Rifle Ballistic Cannon Enhanced Gauss Cannon Launcher Heavy Shock Bomb Launcher Special Weapon Advanced Remote Datajack Impact Weapon Maul Slashing Weapon Power Sword Build | -11 -10 -10 -9 -9 -9 -8 -8 -8 -8 -8 -7 -7 -6 -6 -6 -6 -5 -5 -4 -4 -4 -4 -3 -3 -2 -2 -1 -1 -1 ------- Run | Scr Mat Min Mat Min Exi Min Mat Gar Mat Gar Fac Gar Fac Was Fac Gar Fac Gar Fac Gar Fac Gar Res Gar Res Gar Acc Gar Acc Slots Evolved 18 | . . . 2 . . . 2 . . . 2 . 2 . . . 2 . 2 . . . 2 . 2 . 2 . . Power . | . . . . . . . . . . . . . . . . . . . . . . . . . . . . . . Propulsion . | . . . . . . . . . . . . . . . . . . . . . . . . . . . . . . Utility 18 | . . . 2 . . . 2 . . . 2 . 2 . . . 2 . 2 . . . 2 . 2 . 2 . . Weapon . | . . . . . . . . . . . . . . . . . . . . . . . . . . . . . . Parts Attached 817 | 1 26 2 48 . 4 10 24 15 21 22 50 37 12 14 50 24 50 34 76 39 62 21 32 28 28 22 18 20 27 Power 23 | . 1 . 3 . . 1 . . 3 1 2 1 . 1 . 2 2 . 1 1 . . 2 1 . 1 . . . Engine 11 | . 1 . 3 . . 1 . . 2 1 2 1 . . . . . . . . . . . . . . . . . Core 9 | . . . . . . . . . 1 . . . . . . 1 2 . 1 1 . . 1 1 . 1 . . . Reactor 3 | . . . . . . . . . . . . . . 1 . 1 . . . . . . 1 . . . . . . Propulsion 97 | . 13 . 24 . . 4 7 5 2 2 1 1 . . 2 2 9 2 3 4 1 . 2 7 . 3 2 . 1 Treads 30 | . 6 . 13 . . 2 4 5 . . . . . . . . . . . . . . . . . . . . . Leg 1 | . . . . . . . . . . . . . . . . . . 1 . . . . . . . . . . . Wheel 63 | . 7 . 11 . . 2 3 . 2 2 1 1 . . 2 2 8 1 3 2 1 . 2 7 . 3 2 . 1 Hover 3 | . . . . . . . . . . . . . . . . . 1 . . 2 . . . . . . . . . Flight . | . . . . . . . . . . . . . . . . . . . . . . . . . . . . . . Utility 377 | 1 2 1 7 . 2 1 11 . 3 10 25 15 7 6 22 10 20 11 52 19 43 9 20 7 23 16 10 10 14 Device 129 | . . . 1 . . 1 3 . . 3 4 3 1 5 6 2 5 2 21 12 23 4 10 2 7 7 2 3 2 Storage 50 | 1 2 1 1 . 1 . 4 . . 5 7 . . 1 2 2 1 2 2 1 4 1 1 2 2 2 . 3 2 Processor 3 | . . . . . . . 1 . . . . . . . 1 . . . 1 . . . . . . . . . . Hackware 105 | . . . . . . . . . . . 11 7 4 . 6 3 8 4 12 5 13 4 4 2 4 4 5 1 8 Protection 90 | . . . 5 . 1 . 3 . 3 2 3 5 2 . 7 3 6 3 16 1 3 . 5 1 10 3 3 3 2 Artifact . | . . . . . . . . . . . . . . . . . . . . . . . . . . . . . . Weapon 320 | . 10 1 14 . 2 4 6 10 13 9 22 20 5 7 26 10 19 21 20 15 18 12 8 13 5 2 6 10 12 Energy Gun 32 | . 3 . 1 . 2 2 4 8 6 2 . 1 1 . 1 . . . . . . . . . . . . . 1 Energy Cannon 146 | . . . 2 . . . . . 3 4 12 11 2 4 14 7 11 11 9 6 11 6 6 8 4 1 3 5 6 Ballistic Gun 12 | . 3 . 7 . . . . . 1 . . . . . . . . . 1 . . . . . . . . . . Ballistic Cannon 1 | . . . . . . . . . . . . . . 1 . . . . . . . . . . . . . . . Launcher 38 | . 4 1 4 . . 2 1 2 . 3 . 2 . 1 1 1 . 2 2 4 3 1 1 . . . 1 . 2 Special Weapon 67 | . . . . . . . . . . . 8 6 2 . 8 1 6 7 7 5 4 1 1 4 1 . 1 2 3 Impact Weapon 1 | . . . . . . . . . . . 1 . . . . . . . . . . . . . . . . . . Slashing Weapon 23 | . . . . . . . 1 . 3 . 1 . . 1 2 1 2 1 1 . . 4 . 1 . 1 1 3 . Piercing Weapon . | . . . . . . . . . . . . . . . . . . . . . . . . . . . . . . Special Melee Weapon . | . . . . . . . . . . . . . . . . . . . . . . . . . . . . . . Unidentified Prototypes 3 | . . . 1 . . . . . . . 1 . . . . . 1 . . . . . . . . . . . . Parts Lost 105 | . 1 . 6 . . . 1 1 3 3 1 1 . 2 4 6 1 2 9 3 2 . 6 . 5 2 5 2 39 Power 10 | . . . . . . . . . 2 1 . . . . . 1 1 . 1 . . . . . . 1 . . 3 Propulsion 14 | . . . 4 . . . . . . . . . . . 1 1 . . 1 1 . . . . . 1 2 . 3 Utility 55 | . . . . . . . 1 . 1 1 . . . 2 2 2 . . 6 1 2 . 3 . 4 . 1 2 27 Weapon 26 | . 1 . 2 . . . . 1 . 1 1 1 . . 1 2 . 2 1 1 . . 3 . 1 . 2 . 6 Highest Loss Streak 37 | . 1 . 2 . . . 1 1 2 2 1 1 . 2 1 5 1 1 5 2 1 . 4 . 5 1 2 2 37 Average Slot Usage (%) 81 | . 100 100 95 100 94 87 88 89 89 94 91 73 74 67 79 80 77 79 76 78 76 73 75 79 81 78 86 87 82 Engine 2 | . 14 14 11 11 11 11 9 9 7 8 7 6 6 1 . . . . . . . . . . . . . . . Core 2 | . . . . . . . . . . . . . . . . 4 4 5 4 5 5 5 3 3 4 4 4 4 3 Treads 1 | . 17 14 14 11 11 12 10 17 8 . . . . . . . . . . . . . . . . . . . . Wheel 8 | . 9 14 7 11 11 10 7 . 9 18 11 7 6 6 7 12 6 11 9 6 5 5 5 8 8 8 8 8 7 Device 4 | . . . . . . 3 4 9 9 8 3 2 5 4 7 6 6 4 6 4 5 2 4 1 4 5 3 7 2 Storage 18 | . 28 28 25 22 17 11 14 18 18 25 34 15 13 15 13 13 12 16 13 15 15 19 17 18 19 17 20 23 23 Hackware 21 | . . . . . . . . . . . 12 21 22 20 27 18 24 23 21 32 32 29 29 29 29 27 40 32 31 Protection 6 | . . . 14 22 22 18 19 18 18 15 5 3 5 . 2 5 6 3 7 2 1 1 1 6 6 4 3 4 6 Energy Gun 2 | . 6 . . . 18 20 17 17 8 6 1 . 2 . . . . . . . . . . . . . . . . Energy Cannon 5 | . . . 6 . . . . . 5 10 7 12 3 12 7 6 4 7 5 4 4 3 3 3 3 3 2 . 2 Special Weapon 2 | . . . . . . . . . . . 4 2 5 . 4 4 3 2 3 2 4 5 3 2 3 4 3 4 3 Naked Turns . | . . . . . . . . . . . . . . . . . . . . . . . . . . . . . . Heaviest Build 442 | 15 28 45 69 69 99 99 146 135 164 164 225 204 207 278 208 279 235 290 343 285 360 378 442 299 376 371 328 342 356 Greatest Support 40 | 20 40 10 40 10 10 40 40 40 40 24 28 28 28 28 28 24 28 24 24 28 28 28 28 24 24 24 24 24 24 Greatest Overweight (x) 17 | . 2 4 6 6 9 9 14 13 11 6 8 7 7 9 8 11 17 12 14 11 12 13 16 13 15 15 13 14 14 Average Overweight (x) 8 | . 1 3 5 6 7 8 10 3 4 4 5 6 6 7 6 7 7 11 11 9 9 11 12 12 13 14 12 13 10 Largest Inventory Capacity 104 | 8 10 12 18 18 24 24 38 32 32 36 58 44 44 64 64 64 44 64 64 84 84 84 104 76 104 98 78 96 82 Average Capacity 55 | 6 9 11 16 18 20 24 28 32 32 30 39 44 44 51 44 46 44 63 58 64 67 77 79 69 80 83 78 76 70 Most Carried 84 | 6 10 12 18 18 24 24 30 32 32 36 44 44 44 46 44 44 44 63 64 64 68 73 82 76 81 84 78 77 76 Average Carried 50 | 6 9 11 14 18 18 23 25 30 31 28 36 39 42 44 42 38 42 49 51 60 63 66 72 68 75 75 77 72 68 Final Capacity 84 | 8 10 12 18 18 24 24 32 32 32 36 44 44 44 44 44 44 44 64 64 64 64 84 64 76 84 78 78 76 4 Final Carried 78 | 6 10 12 18 18 24 24 30 32 32 36 41 44 44 44 43 44 43 63 56 64 63 73 64 76 72 78 77 76 2 Class Distribution -------------------- 59% | Botlord-Mutant 20% | Hauler-Mutant 14% | Bothacker-Mutant 5% | Mutant Dominant Class ---------------- Mutant | -10/Materials Mutant | -10/Mines Mutant | -9/Materials Mutant | -9/Mines Mutant | -9/Exiles Hauler-Mutant | -8/Mines Hauler-Mutant | -8/Materials Hauler-Mutant | -8/Garrison Hauler-Mutant | -8/Materials Hauler-Mutant | -8/Garrison Bothacker-Mutant | -7/Factory Bothacker-Mutant | -7/Garrison Bothacker-Mutant | -6/Factory Bothacker-Mutant | -6/Waste Bothacker-Mutant | -6/Factory Botlord-Mutant | -6/Garrison Botlord-Mutant | -5/Factory Botlord-Mutant | -5/Garrison Botlord-Mutant | -4/Factory Botlord-Mutant | -4/Garrison Botlord-Mutant | -4/Factory Botlord-Mutant | -4/Garrison Botlord-Mutant | -3/Research Botlord-Mutant | -3/Garrison Botlord-Mutant | -2/Research Botlord-Mutant | -2/Garrison Botlord-Mutant | -1/Access Botlord-Mutant | -1/Garrison Botlord-Mutant | -1/Access Resources | -11 -10 -10 -9 -9 -9 -8 -8 -8 -8 -8 -7 -7 -6 -6 -6 -6 -5 -5 -4 -4 -4 -4 -3 -3 -2 -2 -1 -1 -1 ----------- Run | Scr Mat Min Mat Min Exi Min Mat Gar Mat Gar Fac Gar Fac Was Fac Gar Fac Gar Fac Gar Fac Gar Res Gar Res Gar Acc Gar Acc Matter Collected 14951 | 218 515 122 807 . 210 287 285 216 210 355 758 627 185 160 668 302 655 555 1308 805 1274 909 476 484 587 614 340 529 490 Remotely 10 | . . . 10 . . . . . . . . . . . . . . . . . . . . . . . . . . Salvage Created 21674 | 75 680 26 1313 . . 370 491 382 1151 1209 630 885 111 845 947 928 501 615 2323 524 1452 618 1033 1557 834 522 629 246 777 Parts 876 | 6 33 4 63 . . 16 31 23 64 69 29 34 2 36 23 28 17 31 91 14 49 18 45 29 35 16 24 12 34 Haulers Intercepted 10 | . . . 5 . . . 1 . 3 . 1 . . . . . . . . . . . . . . . . . . Recyclers Shooed 11 | . . . 4 . . 1 . . . . . . . . . . 1 . 3 . . . . . 1 . 1 . . Parts Field Recycled . | . . . . . . . . . . . . . . . . . . . . . . . . . . . . . . Retrieved Matter . | . . . . . . . . . . . . . . . . . . . . . . . . . . . . . . Parts Self-Destructed . | . . . . . . . . . . . . . . . . . . . . . . . . . . . . . . Prevented . | . . . . . . . . . . . . . . . . . . . . . . . . . . . . . . Kills | -11 -10 -10 -9 -9 -9 -8 -8 -8 -8 -8 -7 -7 -6 -6 -6 -6 -5 -5 -4 -4 -4 -4 -3 -3 -2 -2 -1 -1 -1 ------- Run | Scr Mat Min Mat Min Exi Min Mat Gar Mat Gar Fac Gar Fac Was Fac Gar Fac Gar Fac Gar Fac Gar Res Gar Res Gar Acc Gar Acc Combat Hostiles Destroyed 289 | . 15 3 25 . . 5 10 14 22 27 7 12 1 . 12 11 10 10 30 7 20 3 13 5 7 1 7 3 9 Melee 6 | . . . . . . . . . . . . . . . . . . . 1 . . 1 . . . . . 3 1 Guns 47 | . 8 . 7 . . 2 3 7 12 6 . . 1 . 1 . . . . . . . . . . . . . . Cannons 143 | . . . 5 . . . . . 9 11 3 9 . . 8 9 9 8 20 4 15 2 9 4 7 1 7 . 3 AOE 71 | . 7 3 13 . . 3 6 7 . 10 . 2 . . 2 1 . 2 7 . 2 . 3 . . . . . 3 Classes Destroyed 21 | 2 4 . 4 . . . . . 2 . . 1 1 1 . 1 . . . 1 1 . . 1 . . 1 . 1 Worker 10 | . 1 . 2 . . . 2 . . . 1 . . . . . . . . . 1 . 3 . . . . . . Builder 1 | . . . . . . . . . . . . . . . . . . . . . . . . . . . 1 . . Tunneler 2 | 1 . . . . . . . . . . . . . . . . . . 1 . . . . . . . . . . Hauler 10 | . . . 5 . . . 1 . 3 . 1 . . . . . . . . . . . . . . . . . . Recycler 15 | 1 2 . 3 . . 1 1 . . . 2 . . . 2 . . . 1 . . . . . 2 . . . . Operator 2 | . . . 1 . . . . . . . . . . . 1 . . . . . . . . . . . . . . Drone 1 | . . . . . . . . . . . . . . . . . . . . . . . . 1 . . . . . Watcher 13 | . 2 . 4 . . . 2 . . . 1 . . . . . . . . . . . 2 . . . 1 . 1 Swarmer 54 | . 4 3 8 . . 2 6 7 5 8 1 . . . . . 3 3 . 2 1 . 1 . . . . . . Saboteur 1 | . . . . . . . . . . . . . . . . 1 . . . . . . . . . . . . . Grunt 150 | . 11 . 11 . . 5 3 5 8 10 3 9 1 . 8 11 . 4 17 3 12 4 9 4 3 . 4 3 2 Brawler 5 | . . . . . . . . . 1 1 1 . . . . . . . . 1 1 . . . . . . . . Duelist 10 | . . . 1 . . 1 . 1 1 2 . 2 . . . . . . . . 1 . 1 . . . . . . Protector 1 | . . . . . . . . . . . . . . . . . . . . . 1 . . . . . . . . Sentry 23 | . . . 5 . . . 1 1 6 6 1 . . . . . . . 2 . . . . . . . . . 1 Demolisher 1 | . . . . . . . . . . . . . . . . . . . . . . . . . . 1 . . . Specialist 1 | . . . . . . . . . . . . . . . . . . . . 1 . . . . . . . . . Hunter 14 | . . . . . . . . . . . . . 1 . 1 . 1 4 1 1 . . . . . 1 . . 4 Programmer 42 | . . . . . . . . . 1 . 1 . . . 3 . 6 . 11 . 5 . 3 1 5 1 3 . 2 Behemoth 1 | . . . . . . . . . . . . 1 . . . . . . . . . . . . . . . . . Striker 1 | . . . . . . . . . . . . . . . . . . . . . . . . . . . . . 1 Wasp 5 | . . . . . . . . . . . . . . 5 . . . . . . . . . . . . . . . Thug 7 | . . . . . . . . . . . . . . 7 . . . . . . . . . . . . . . . Martyr 2 | . . . . . . . . . . . . . . 2 . . . . . . . . . . . . . . . Best Kill Streak 12 | 2 6 3 9 . . 2 9 4 6 6 4 3 1 . 3 4 4 3 4 3 4 1 12 2 3 1 3 2 5 Combat Bots Only 9 | . 6 3 8 . . 2 7 4 6 6 3 3 1 . 3 4 4 3 4 3 4 1 9 2 2 1 2 2 4 Max Kills in Single Turn 6 | 1 3 3 5 . . 3 4 2 1 2 1 1 1 1 2 1 1 1 4 1 2 1 6 1 1 1 1 1 2 Gunslinging . | . . . . . . . . . . . . . . . . . . . . . . . . . . . . . . Exploded 4 | . 3 3 3 . . 2 3 2 . 2 . 1 . . 2 1 . 1 4 . 1 . 3 . . . . . 1 Melee 1 | . . . . . . . . . . . . . . . . . . . 1 . . 1 . . . . . 1 1 Uniques/NPCs Destroyed . | . . . . . . . . . . . . . . . . . . . . . . . . . . . . . . Combat | -11 -10 -10 -9 -9 -9 -8 -8 -8 -8 -8 -7 -7 -6 -6 -6 -6 -5 -5 -4 -4 -4 -4 -3 -3 -2 -2 -1 -1 -1 -------- Run | Scr Mat Min Mat Min Exi Min Mat Gar Mat Gar Fac Gar Fac Was Fac Gar Fac Gar Fac Gar Fac Gar Res Gar Res Gar Acc Gar Acc Damage Taken 28102 | . 605 9 1278 . . 116 504 434 1102 607 852 749 90 273 1584 1407 1298 571 2861 1548 1425 424 1435 358 1368 737 1167 595 4705 Core 3584 | . 133 . 84 . . . 59 34 85 77 78 76 . 21 219 144 106 20 141 129 151 84 163 34 51 93 60 48 1494 Absorbed by Shields 759 | . . . . . . . . . . . . . . . 37 . 55 . 54 . . . . . 153 126 68 . 266 Core Remaining (%) 72 | 100 . 46 . . . 79 . . . 53 . 78 . . . 54 . 87 . . . 56 . 84 . 90 . . . Volleys Fired 1815 | 4 65 1 92 . . 17 25 32 49 66 88 91 22 21 78 60 79 56 193 86 181 75 68 64 93 56 78 22 53 Largest 2 | 2 2 1 2 . . 2 2 2 2 2 2 2 1 2 2 2 2 2 2 1 2 1 1 1 1 1 1 1 1 Hottest 233 | 40 70 30 116 . . 90 90 90 130 130 132 138 69 138 180 180 159 138 226 113 233 113 113 120 120 120 120 120 120 Shots Fired 2259 | 8 117 1 165 . . 24 38 50 115 111 112 126 22 32 111 83 96 69 193 88 187 75 68 64 93 57 78 22 54 Gun 470 | 8 111 . 109 . . 20 33 43 62 51 9 8 8 . 6 . . . . . 1 . . . . . . . 1 Cannon 1105 | . . . 45 . . . . . 53 49 50 85 1 27 71 71 66 50 125 43 92 34 46 44 51 27 47 8 20 Launcher 93 | . 6 1 11 . . 4 5 7 . 11 . 2 . 1 2 3 . 3 5 12 9 . 1 . . . . . 10 Special 591 | . . . . . . . . . . . 53 31 13 4 32 9 30 16 63 33 85 41 21 20 42 30 31 14 23 Kinetic 214 | 8 96 . 108 . . . . . 2 . . . . . . . . . . . . . . . . . . . . Thermal 828 | . 15 . 46 . . . . . 66 43 30 26 8 . 48 34 54 3 120 36 78 21 40 24 51 27 34 4 20 Explosive 56 | . 6 1 11 . . 4 5 7 . 11 . 2 . 1 2 3 . 3 . . . . . . . . . . . Electromagnetic 570 | . . . . . . 20 33 43 47 57 29 67 1 27 29 37 12 47 10 19 24 13 7 20 . . 13 4 11 Robot Hit Streak 38 | 3 19 . 9 . . 6 10 12 13 24 13 15 8 10 8 9 13 10 15 18 21 14 24 29 38 12 9 11 10 Robot Miss Streak 5 | 1 4 . 4 . . 4 4 3 4 1 4 4 1 1 3 2 3 2 4 2 2 3 2 2 2 1 5 3 3 Penetration Max . | . . . . . . . . . . . . . . . . . . . . . . . . . . . . . . Secondary Targets 4 | . 1 . 1 . . . . 1 . 1 . . . . . . . . . . . . . . . . . . . Max Gunslinging Chain 1 | . 1 . 1 . . . . 1 . 1 . . . . . . . . . . . . . . . . . . . Capacitor 31 | . . . . . . . . . . . . . . . . . . . 28 . 3 . . . . . . . . Autonomous 36 | . . . . . . . . . 20 . . 9 . . 6 . . . . . . . . . . . . . 1 Shots Hit Robots 1539 | 6 80 . 99 . . 15 27 34 84 73 71 80 19 35 79 51 69 34 126 48 126 52 43 90 55 46 42 17 38 Core Hits 646 | 4 38 3 65 . . 19 30 33 46 51 13 22 3 22 28 29 11 17 49 15 39 8 29 21 10 9 9 3 20 Critical Hits 11 | . 2 . . . . . . . . . . . . 1 1 . 2 . . . 1 1 . 1 1 . . 1 . Critical Kills 4 | . . . . . . . . . . . . . . 1 . . . . . . 1 . . . 1 . . 1 . Critical Parts Destroyed 7 | . 2 . . . . . . . . . . . . . 1 . 2 . . . . 1 . 1 . . . . . Melee Attacks 274 | . . . . . . . 1 . 14 . 3 . . 14 3 30 6 9 2 . . 61 1 45 . 20 19 41 5 Impact . | . . . . . . . . . . . . . . . . . . . . . . . . . . . . . . Slashing 274 | . . . . . . . 1 . 14 . 3 . . 14 3 30 6 9 2 . . 61 1 45 . 20 19 41 5 Piercing . | . . . . . . . . . . . . . . . . . . . . . . . . . . . . . . Sneak Attacks 29 | . . . . . . . . . . . . . . 14 . . . . 2 . . 3 . 4 . 2 . 1 3 Combat Hostiles 12 | . . . . . . . . . . . . . . . . . . . 2 . . 2 . 4 . . . 1 3 Follow-up Attacks . | . . . . . . . . . . . . . . . . . . . . . . . . . . . . . . Damage Inflicted 47093 | 46 1118 99 2639 . . 602 864 941 1912 2275 1178 1819 354 2104 2459 1953 1728 925 4394 1429 3322 1108 2145 5168 1218 1460 1288 400 2145 Guns 4850 | 46 705 . 882 . . 232 425 350 1016 627 77 245 91 . 115 . . . . . 13 . . . . . . . 26 Cannons 24017 | . . . 598 . . . . . 896 836 1034 1387 28 525 1715 1455 1636 741 3273 875 2131 671 1183 1233 1218 563 1288 145 586 Explosions 10797 | . 410 99 1159 . . 359 439 591 . 812 67 187 235 222 599 498 . 184 854 554 1178 . 962 197 . . . . 1191 Melee 7415 | . . . . . . . . . . . . . . 1357 30 . 92 . 267 . . 437 . 3738 . 897 . 255 342 Ramming 14 | . 3 . . . . 11 . . . . . . . . . . . . . . . . . . . . . . . Kinetic 1475 | 46 543 . 868 . . . . . 18 . . . . . . . . . . . . . . . . . . . . Thermal 20931 | . 162 . 692 . . 47 . 159 1261 799 615 538 326 . 1463 804 1398 87 3672 678 1714 312 1747 920 1218 563 959 103 694 Explosive 5211 | . 410 99 1079 . . 312 439 432 . 713 . 187 . 222 370 498 . 97 . . 353 . . . . . . . . Electromagnetic 12047 | . . . . . . 232 425 350 633 763 563 1094 28 525 596 651 238 741 455 751 1255 359 398 510 . . 329 42 1109 Impact . | . . . . . . . . . . . . . . . . . . . . . . . . . . . . . . Slashing 7415 | . . . . . . . . . . . . . . 1357 30 . 92 . 267 . . 437 . 3738 . 897 . 255 342 Piercing . | . . . . . . . . . . . . . . . . . . . . . . . . . . . . . . Highest Corruption 9 | . . . 4 4 4 4 . . . . 4 4 . . 2 2 3 3 9 9 6 6 2 3 7 7 4 6 8 Average Corruption 3 | . . . 3 4 4 4 . . . . 3 4 . . 1 2 1 3 5 5 2 4 1 2 6 4 3 4 3 Corruption Purged 31 | . . . . . . . . . . . . . . . . . . . 1 12 . 2 . 3 . 7 . 6 . Effects 466 | . . . 21 . 21 6 . . . . 14 50 . . 1 19 2 41 63 59 9 54 5 21 9 11 14 42 4 Message Errors 127 | . . . 3 . 10 2 . . . . 2 17 . . . 8 . 11 15 17 3 12 2 4 2 3 4 12 . Matter Fused 89 | . . . 3 . 5 1 . . . . 1 10 . . . . . 10 14 13 . 16 . 2 . 2 2 10 . Heat Flow Errors 61 | . . . 1 . 4 . . . . . 4 6 . . . 4 1 2 3 9 1 9 . 4 1 2 3 7 . Energy Discharges 46 | . . . 1 . 1 1 . . . . . 6 . . . 4 . 5 10 2 . 4 2 3 1 1 1 3 1 Parts Rejected 9 | . . . 1 . . . . . . . . . . . . . . . 2 4 1 . . . 1 . . . . Data Loss (minor) 61 | . . . 1 . 1 . . . . . 4 7 . . . 2 . 10 4 5 1 7 . 5 . 2 2 8 2 Data Loss (major) 4 | . . . . . . . . . . . . . . . . . . . . 3 . . . . 1 . . . . Misfires 5 | . . . . . . . . . . . . . . . . . . . . 2 2 . . . . 1 . . . Targeting Errors 59 | . . . 10 . . 2 . . . . 3 4 . . 1 1 1 2 12 4 1 6 1 3 3 . 2 2 1 Weapon Failures 5 | . . . 1 . . . . . . . . . . . . . . 1 3 . . . . . . . . . . Overload Shots . | . . . . . . . . . . . . . . . . . . . . . . . . . . . . . . Overflow Damage 2204 | . 20 . 18 . . . . . 16 8 71 . . 128 215 8 196 7 223 86 112 66 65 438 161 248 93 25 . Projectiles 1179 | . . . . . . . . . 16 8 49 . . 7 170 8 196 7 107 86 103 . 4 92 161 47 93 25 . Explosions 257 | . 20 . 18 . . . . . . . 22 . . 18 40 . . . 69 . 9 . 61 . . . . . . Melee 768 | . . . . . . . . . . . . . . 103 5 . . . 47 . . 66 . 346 . 201 . . . Knockbacks . | . . . . . . . . . . . . . . . . . . . . . . . . . . . . . . Impact . | . . . . . . . . . . . . . . . . . . . . . . . . . . . . . . Kinetic . | . . . . . . . . . . . . . . . . . . . . . . . . . . . . . . Secondary . | . . . . . . . . . . . . . . . . . . . . . . . . . . . . . . Self-Inflicted Damage 943 | . 35 . 44 . . 34 39 36 . 97 . . . . 68 99 . 4 4 151 149 . 70 54 . . . . 59 Shots 40 | . 2 . 3 . . 1 1 2 . 4 . . . . 1 2 . 1 2 7 6 . 2 2 . . . . 4 Rammed 3 | . 1 . . . . 1 . . . . . . . . . . . . . . . . . . . . . . 1 Targets Rammed 3 | . 1 . . . . 1 . . . . . . . . . . . . . . . . . . . . . . 1 Kicked . | . . . . . . . . . . . . . . . . . . . . . . . . . . . . . . Crushed . | . . . . . . . . . . . . . . . . . . . . . . . . . . . . . . Highest Temperature 508 | . 146 . 273 . 252 321 263 29 291 315 342 328 . 185 358 251 508 236 363 251 282 252 239 220 172 230 238 245 308 Average Temperature 78 | . 33 . 87 . 108 103 98 12 102 68 71 75 . 72 88 89 113 81 103 67 69 58 65 55 49 66 57 70 83 Received Heat Transfer 4782 | . 285 . 465 . . 45 153 126 369 153 171 231 9 . 471 447 55 114 461 183 216 21 246 45 89 33 93 63 238 Effects 19 | . . . 3 . . 1 . . 1 2 . 1 . . 3 4 3 . . . 1 . . . . . . . . Shutdowns 2 | . . . . . . . . . . . . . . . 1 . 1 . . . . . . . . . . . . Energy Bleed 6 | . . . 1 . . 1 . . . 2 . 1 . . . . 1 . . . . . . . . . . . . Interference 10 | . . . 2 . . . . . 1 . . . . . 2 4 . . . . 1 . . . . . . . . Short Circuit 1 | . . . . . . . . . . . . . . . . . 1 . . . . . . . . . . . . Siege Activations . | . . . . . . . . . . . . . . . . . . . . . . . . . . . . . . Robots Corrupted 31 | . . . . . . . 1 . 1 2 3 3 . . . 3 . . 2 3 3 3 1 3 . . 1 . 2 Combat Hostiles 19 | . . . . . . . 1 . 1 . 3 1 . . . 1 . . 2 3 3 . 1 1 . . . . 2 Parts Fried 71 | . . . . . . 1 1 . 5 2 3 7 . 2 4 8 . 5 7 5 6 1 2 2 . . 3 . 7 Impact Corruptions . | . . . . . . . . . . . . . . . . . . . . . . . . . . . . . . Robots Melted 3 | . . . . . . . . . . . 1 . . . 1 . 1 . . . . . . . . . . . . Combat Hostiles 3 | . . . . . . . . . . . 1 . . . 1 . 1 . . . . . . . . . . . . Parts Melted 49 | . 1 . 5 . . . . . 1 3 1 . 1 . 1 3 12 2 5 . 2 . 1 1 5 . 5 . . Heat Transferred 21446 | . 481 . 1345 . . 50 . 200 1591 1075 766 666 459 . 1964 1068 1453 100 3075 629 1517 296 1301 830 925 423 740 74 418 Parts Sabotaged 5 | . . . . . . . . . . . . . . . . 5 . . . . . . . . . . . . . Parts Stolen . | . . . . . . . . . . . . . . . . . . . . . . . . . . . . . . Parts Stripped . | . . . . . . . . . . . . . . . . . . . . . . . . . . . . . . Power Chain Reactions 20 | . . . . . . 1 . 2 . 2 1 . 1 . 2 . . 1 1 1 1 . 4 2 . . . . 1 Missiles Intercepted . | . . . . . . . . . . . . . . . . . . . . . . . . . . . . . . Alert | -11 -10 -10 -9 -9 -9 -8 -8 -8 -8 -8 -7 -7 -6 -6 -6 -6 -5 -5 -4 -4 -4 -4 -3 -3 -2 -2 -1 -1 -1 ------- Run | Scr Mat Min Mat Min Exi Min Mat Gar Mat Gar Fac Gar Fac Was Fac Gar Fac Gar Fac Gar Fac Gar Res Gar Res Gar Acc Gar Acc Peak Influence 1716 | 10 460 209 705 274 . 266 346 618 407 971 670 921 543 371 158 540 611 1057 554 431 473 669 393 370 248 311 195 460 1716 Average Influence 334 | 8 261 202 327 274 . 144 132 371 193 623 451 622 403 171 60 398 207 781 148 307 302 503 165 262 121 126 93 157 1596 Maximum Alert Level 5 | . 2 1 3 1 . 1 1 2 2 3 2 3 2 1 . 2 2 3 2 2 2 2 1 1 1 1 . 2 5 Low Security (%) 35 | 100 17 9 30 . . 62 71 5 45 5 . . . 67 100 14 57 . 83 16 . . 53 40 62 83 100 64 . Level 1 32 | . 71 90 40 100 . 37 28 52 49 15 38 7 55 32 . 28 23 . 15 51 86 29 46 59 37 16 . 25 . Level 2 23 | . 10 . 16 . . . . 42 5 28 61 58 44 . . 56 19 39 . 31 13 70 . . . . . 10 . Level 3 8 | . . . 12 . . . . . . 51 . 33 . . . . . 59 . . . . . . . . . . . Level 4 . | . . . . . . . . . . . . . . . . . . . . . . . . . . . . . . Level 5 . | . . . . . . . . . . . . . . . . . . . . . . . . . . . . . . High Security . | . . . . . . . . . . . . . . . . . . . . . . . . . . . . . . Max Security . | . . . . . . . . . . . . . . . . . . . . . . . . . . . . . 99 Squads Dispatched 103 | . 3 . 4 . . 1 2 . 3 . 6 . 3 . 10 . 9 . 10 . 15 . 3 . 10 . 8 . 16 Investigation 28 | . 2 . 2 . . 1 . . . . 3 . 1 . 5 . 1 . 3 . 6 . . . 3 . 1 . . Extermination 22 | . . . . . . . . . . . 2 . . . 1 . 4 . 5 . 2 . 2 . 3 . 3 . . Reinforcement 21 | . 1 . 2 . . . 1 . . . 1 . 1 . 2 . 2 . 2 . 4 . 1 . . . 3 . 1 Assault 17 | . . . . . . . . . . . . . 1 . 1 . . . . . 2 . . . . . . . 13 Garrison 15 | . . . . . . . 1 . 3 . . . . . 1 . 2 . . . 1 . . . 4 . 1 . 2 Intercept . | . . . . . . . . . . . . . . . . . . . . . . . . . . . . . . Construction Impeded 11 | . . . 1 . . . 1 . . . 1 . . . 1 . . . . . 3 . 1 . . . 2 . 1 Haulers Reinforced 5 | . . . . . . . . . . . . . . . 1 . 1 . 1 . 1 . . . . . 1 . . Alert ID Control Effect 260 | . . . . . . . . . . . 6 15 1 . 14 1 15 5 8 15 28 17 15 9 24 13 43 13 18 Stealth | -11 -10 -10 -9 -9 -9 -8 -8 -8 -8 -8 -7 -7 -6 -6 -6 -6 -5 -5 -4 -4 -4 -4 -3 -3 -2 -2 -1 -1 -1 --------- Run | Scr Mat Min Mat Min Exi Min Mat Gar Mat Gar Fac Gar Fac Was Fac Gar Fac Gar Fac Gar Fac Gar Res Gar Res Gar Acc Gar Acc Distress Signals 30 | . 2 . 3 . . . 1 . 1 . 1 . . . 2 . . . 5 . 1 . 4 . 3 . 6 . 1 Communications Jammed . | . . . . . . . . . . . . . . . . . . . . . . . . . . . . . . Distress Signals . | . . . . . . . . . . . . . . . . . . . . . . . . . . . . . . Times Spotted 867 | . 23 3 40 . . 8 18 13 26 26 33 42 13 4 32 31 41 30 63 35 71 34 35 22 33 31 60 18 82 Peak Tracking Total 29 | . 3 3 8 . . 3 7 4 4 4 4 5 3 2 5 13 5 6 5 6 5 6 6 5 5 7 6 5 29 Tactical Retreats 30 | . . . 2 . . . . . 1 2 1 3 . . 3 2 1 1 9 1 1 . . . . . 2 . 1 Traps | -11 -10 -10 -9 -9 -9 -8 -8 -8 -8 -8 -7 -7 -6 -6 -6 -6 -5 -5 -4 -4 -4 -4 -3 -3 -2 -2 -1 -1 -1 ------- Run | Scr Mat Min Mat Min Exi Min Mat Gar Mat Gar Fac Gar Fac Was Fac Gar Fac Gar Fac Gar Fac Gar Res Gar Res Gar Acc Gar Acc Traps Triggered 73 | . . . 3 . . . . 4 1 11 3 7 1 . 1 7 3 4 . 6 3 4 . 3 . 3 . 9 . Indirectly 2 | . . . . . . . . . . . . . . . . . . . . . 2 . . . . . . . . Trap Hack Attempts . | . . . . . . . . . . . . . . . . . . . . . . . . . . . . . . Triggered . | . . . . . . . . . . . . . . . . . . . . . . . . . . . . . . Disarmed . | . . . . . . . . . . . . . . . . . . . . . . . . . . . . . . Reprogrammed . | . . . . . . . . . . . . . . . . . . . . . . . . . . . . . . Reused . | . . . . . . . . . . . . . . . . . . . . . . . . . . . . . . Traps Extracted . | . . . . . . . . . . . . . . . . . . . . . . . . . . . . . . Installed . | . . . . . . . . . . . . . . . . . . . . . . . . . . . . . . Triggered 3 | . . . . . . . . . . . . 1 . . 1 . . . 1 . . . . . . . . . . Machines | -11 -10 -10 -9 -9 -9 -8 -8 -8 -8 -8 -7 -7 -6 -6 -6 -6 -5 -5 -4 -4 -4 -4 -3 -3 -2 -2 -1 -1 -1 ---------- Run | Scr Mat Min Mat Min Exi Min Mat Gar Mat Gar Fac Gar Fac Was Fac Gar Fac Gar Fac Gar Fac Gar Res Gar Res Gar Acc Gar Acc Machines Disabled 94 | . . . 4 . . 1 . 3 1 6 3 9 1 . 1 5 2 8 7 5 9 7 3 4 2 4 2 5 2 Max in Single Turn 6 | . . . 2 . . . . 1 1 1 1 1 . . 1 1 1 1 6 1 1 1 1 1 1 1 1 1 1 Garrison Access 5 | . . . . . . . . . . . . . . . 1 . . . . . 2 . . . . . 1 . 1 Garrison Relay 41 | . . . . . . . . 3 . 4 . 6 . . . 4 . 4 . 4 . 4 . 4 . 4 . 4 . Machines Sabotaged . | . . . . . . . . . . . . . . . . . . . . . . . . . . . . . . Garrisons Compromised . | . . . . . . . . . . . . . . . . . . . . . . . . . . . . . . Overloaded Fab Kills . | . . . . . . . . . . . . . . . . . . . . . . . . . . . . . . Fab Network Shutdowns 2 | . . . . . . . . . . . 1 . . . . . 1 . . . . . . . . . . . . Hacking | -11 -10 -10 -9 -9 -9 -8 -8 -8 -8 -8 -7 -7 -6 -6 -6 -6 -5 -5 -4 -4 -4 -4 -3 -3 -2 -2 -1 -1 -1 --------- Run | Scr Mat Min Mat Min Exi Min Mat Gar Mat Gar Fac Gar Fac Was Fac Gar Fac Gar Fac Gar Fac Gar Res Gar Res Gar Acc Gar Acc Machines Accessed 71 | . 3 . 2 . 2 1 7 . 10 . 4 . 3 . 5 . 4 . 7 . 10 . 5 . 4 . 4 . . Terminals 28 | . 1 . 2 . . 1 5 . 9 . . . 1 . . . 2 . 3 . 1 . 2 . . . 1 . . Fabricators 16 | . . . . . . . . . . . 3 . 1 . 2 . 1 . 2 . 4 . . . 2 . 1 . . Repair Stations 4 | . . . . . . . . . . . . . . . . . . . 1 . 1 . 2 . . . . . . Recycling Units 4 | . 2 . . . . . . . . . . . 1 . 1 . . . . . . . . . . . . . . Scanalyzers 3 | . . . . . . . 1 . . . . . . . . . . . . . 1 . . . 1 . . . . Garrison Access 14 | . . . . . . . 1 . 1 . 1 . . . 2 . 1 . 1 . 3 . 1 . 1 . 2 . . Total Hacks 202 | . 11 . 12 . 2 4 21 . 22 . 12 . 6 . 12 . 14 . 23 . 29 . 11 . 15 . 8 . . Successful 105 | . 6 . 7 . 2 1 9 . 12 . 9 . 4 . 7 . 8 . 10 . 17 . 4 . 7 . 2 . . Failed 97 | . 5 . 5 . . 3 12 . 10 . 3 . 2 . 5 . 6 . 13 . 12 . 7 . 8 . 6 . . Catastrophic 23 | . 1 . . . . 2 1 . 4 . . . 1 . 1 . 1 . 4 . 2 . 1 . 2 . 3 . . Database Lockouts . | . . . . . . . . . . . . . . . . . . . . . . . . . . . . . . Manual 110 | . 9 . 12 . 1 4 16 . 18 . 3 . 1 . 5 . 10 . 8 . 8 . 8 . 2 . 5 . . Terminals 82 | . 8 . 12 . . 4 17 . 20 . . . 2 . . . 8 . 5 . 2 . 3 . . . 1 . . Fabricators 53 | . . . . . . . . . . . 8 . 3 . 5 . 3 . 11 . 16 . . . 6 . 1 . . Repair Stations 9 | . . . . . . . . . . . . . . . . . . . 1 . 3 . 5 . . . . . . Recycling Units 5 | . 3 . . . . . . . . . . . 1 . 1 . . . . . . . . . . . . . . Scanalyzers 9 | . . . . . . . 2 . . . . . . . . . . . . . 1 . . . 6 . . . . Garrison Access 42 | . . . . . . . 2 . 2 . 4 . . . 6 . 3 . 6 . 7 . 3 . 3 . 6 . . Terminal Hacks 22 | . 1 . 4 . 2 1 4 . 8 . . . . . . . 1 . . . . . 1 . . . . . . Record 1 | . . . . . 1 . . . . . . . . . . . . . . . . . . . . . . . . Part Schematic 1 | . . . . . . 1 . . . . . . . . . . . . . . . . . . . . . . . Robot Analysis 6 | . . . 2 . . . . . 4 . . . . . . . . . . . . . . . . . . . . Branch Access Points 2 | . 1 . 1 . . . . . . . . . . . . . . . . . . . . . . . . . . Terminal Index 1 | . . . . . . . 1 . . . . . . . . . . . . . . . . . . . . . . Garrison Index 2 | . . . . . . . 1 . 1 . . . . . . . . . . . . . . . . . . . . Alert Level 1 | . . . . . . . 1 . . . . . . . . . . . . . . . . . . . . . . Unreport Threat 3 | . . . . . . . . . 2 . . . . . . . . . . . . . 1 . . . . . . Locate Traps 1 | . . . . . . . . . . . . . . . . . 1 . . . . . . . . . . . . Hauler Manifests 3 | . . . 1 . . . 1 . 1 . . . . . . . . . . . . . . . . . . . . EX-Prototype ID Bank 1 | . . . . . 1 . . . . . . . . . . . . . . . . . . . . . . . . Fabricator Hacks 32 | . . . . . . . . . . . 7 . 3 . 3 . 2 . 4 . 9 . . . 4 . . . . Load Schematic 12 | . . . . . . . . . . . 3 . 1 . 1 . . . 1 . 4 . . . 2 . . . . Build 20 | . . . . . . . . . . . 4 . 2 . 2 . 2 . 3 . 5 . . . 2 . . . . Repair Station Hacks 1 | . . . . . . . . . . . . . . . . . . . . . 1 . . . . . . . . Scan Component 1 | . . . . . . . . . . . . . . . . . . . . . 1 . . . . . . . . Recycling Unit Hacks . | . . . . . . . . . . . . . . . . . . . . . . . . . . . . . . Scanalyzer 5 | . . . . . . . 2 . . . . . . . . . . . . . 1 . . . 2 . . . . Insert Component 3 | . . . . . . . 1 . . . . . . . . . . . . . 1 . . . 1 . . . . Analyze 2 | . . . . . . . 1 . . . . . . . . . . . . . . . . . 1 . . . . Garrison Access Hacks 14 | . . . . . . . 1 . 1 . 1 . . . 2 . 1 . 1 . 3 . 1 . 1 . 2 . . Unlock Access 12 | . . . . . . . 1 . 1 . 1 . . . 2 . 1 . 1 . 2 . 1 . 1 . 1 . . Seal Access 2 | . . . . . . . . . . . . . . . . . . . . . 1 . . . . . 1 . . Unauthorized Hacks 31 | . 5 . 3 . . . 2 . 3 . 1 . 1 . 2 . 4 . 5 . 3 . 2 . . . . . . Terminals 14 | . 3 . 3 . . . 1 . 2 . . . . . . . 2 . 2 . 1 . . . . . . . . Track 3 | . 1 . 1 . . . . . . . . . . . . . . . 1 . . . . . . . . . . Assimilate 1 | . 1 . . . . . . . . . . . . . . . . . . . . . . . . . . . . Botnet 8 | . 1 . 2 . . . 1 . 2 . . . . . . . 1 . 1 . . . . . . . . . . Operators 2 | . . . . . . . . . . . . . . . . . 1 . . . 1 . . . . . . . . Fabricators 1 | . . . . . . . . . . . . . . . . . 1 . . . . . . . . . . . . Download 1 | . . . . . . . . . . . . . . . . . 1 . . . . . . . . . . . . Repair Stations 3 | . . . . . . . . . . . . . . . . . . . 1 . 1 . 1 . . . . . . Mechanics 3 | . . . . . . . . . . . . . . . . . . . 1 . 1 . 1 . . . . . . Recycling Units 4 | . 2 . . . . . . . . . . . 1 . 1 . . . . . . . . . . . . . . Tunnel 4 | . 2 . . . . . . . . . . . 1 . 1 . . . . . . . . . . . . . . Scanalyzers . | . . . . . . . . . . . . . . . . . . . . . . . . . . . . . . Garrison Access 9 | . . . . . . . 1 . 1 . 1 . . . 1 . 1 . 2 . 1 . 1 . . . . . . Restock 5 | . . . . . . . 1 . 1 . . . . . . . 1 . 1 . 1 . . . . . . . . Reprogram 1 | . . . . . . . . . . . . . . . . . . . . . . . 1 . . . . . . Eject 3 | . . . . . . . . . . . 1 . . . 1 . . . 1 . . . . . . . . . . Data Cores Recovered 1 | . . . . . . . . . . . . . 1 . . . . . . . . . . . . . . . . Used . | . . . . . . . . . . . . . . . . . . . . . . . . . . . . . . Hacking Detections 59 | . 1 . 2 . . 1 6 . 10 . 4 . 2 . 3 . 3 . 6 . 8 . 5 . 4 . 4 . . Full Trace Events 16 | . . . 1 . . 1 1 . . . 2 . . . 2 . . . 1 . 5 . . . 2 . 1 . . Feedback Events . | . . . . . . . . . . . . . . . . . . . . . . . . . . . . . . Feedback Blocked . | . . . . . . . . . . . . . . . . . . . . . . . . . . . . . . Robot Schematics Acquired . | . . . . . . . . . . . . . . . . . . . . . . . . . . . . . . Robots Built . | . . . . . . . . . . . . . . . . . . . . . . . . . . . . . . Matter . | . . . . . . . . . . . . . . . . . . . . . . . . . . . . . . Time . | . . . . . . . . . . . . . . . . . . . . . . . . . . . . . . Total Robot Build Rating . | . . . . . . . . . . . . . . . . . . . . . . . . . . . . . . Part Schematics Acquired 4 | . . . . . . 1 1 . . . . . . . . . 1 . . . . . . . 1 . . . . Parts Built 20 | . . . . . . . . . . . 4 . 2 . 2 . 2 . 3 . 5 . . . 2 . . . . Matter 2392 | . . . . . . . . . . . 408 . 204 . 204 . 556 . 306 . 510 . . . 204 . . . . Time 744 | . . . . . . . . . . . 178 . 102 . 50 . 138 . 75 . 151 . . . 50 . . . . Total Part Build Rating 36 | . . . . . . . . . . . 4 . 2 . 2 . 18 . 3 . 5 . . . 2 . . . . Parts Repaired . | . . . . . . . . . . . . . . . . . . . . . . . . . . . . . . Time . | . . . . . . . . . . . . . . . . . . . . . . . . . . . . . . Parts Recycled . | . . . . . . . . . . . . . . . . . . . . . . . . . . . . . . Recycled Matter . | . . . . . . . . . . . . . . . . . . . . . . . . . . . . . . Retrieved Matter . | . . . . . . . . . . . . . . . . . . . . . . . . . . . . . . Retrieved Components . | . . . . . . . . . . . . . . . . . . . . . . . . . . . . . . Parts Scanalyzed 2 | . . . . . . . 1 . . . . . . . . . . . . . . . . . 1 . . . . Part Schematics Acquired 2 | . . . . . . . 1 . . . . . . . . . . . . . . . . . 1 . . . . Parts Damaged . | . . . . . . . . . . . . . . . . . . . . . . . . . . . . . . Bothacking | -11 -10 -10 -9 -9 -9 -8 -8 -8 -8 -8 -7 -7 -6 -6 -6 -6 -5 -5 -4 -4 -4 -4 -3 -3 -2 -2 -1 -1 -1 ------------ Run | Scr Mat Min Mat Min Exi Min Mat Gar Mat Gar Fac Gar Fac Was Fac Gar Fac Gar Fac Gar Fac Gar Res Gar Res Gar Acc Gar Acc Used RIF Installer 10 | . . . . . . . . 1 . 1 . 1 . . . 1 . 1 . 1 . 1 . 1 . 1 . 1 . Coupler Efficiency 3 | . . . . . . . . . . . . 1 . . . . . 1 . . . . . 1 . . . . . Robot Detection 1 | . . . . . . . . . . . . . . . . . . . . . . . . . . . . 1 . Alert ID Control 1 | . . . . . . . . . . 1 . . . . . . . . . . . . . . . . . . . Structural Interface 1 | . . . . . . . . . . . . . . . . . . . . . . 1 . . . . . . . Autooverride 1 | . . . . . . . . . . . . . . . . . . . . 1 . . . . . . . . . Autoassimilate 2 | . . . . . . . . . . . . . . . . 1 . . . . . . . . . 1 . . . Robots Hacked 352 | . . . . . . . . . . . 23 15 7 3 17 10 13 8 25 18 48 17 14 16 27 21 35 15 20 Non-combat 84 | . . . . . . . . . . . 6 . 4 . 8 . 5 . 12 . 22 . 7 . 11 1 5 . 3 Combat 268 | . . . . . . . . . . . 17 15 3 3 9 10 8 8 13 18 26 17 7 16 16 20 30 15 17 Autooverrided 32 | . . . . . . . . . . . . . . . . . . . . . 8 2 . 4 2 3 6 2 5 Autoassimilated 63 | . . . . . . . . . . . . . . . . 5 . . 2 1 5 2 2 3 4 4 19 7 9 Robot Hacks Applied 309 | . . . . . . . . . . . 25 15 9 3 18 5 16 8 38 18 50 15 12 9 26 16 13 7 6 parse_system 18 | . . . . . . . . . . . 1 . 1 . 4 . . . 2 1 2 1 . . 3 1 1 1 . no_distress 1 | . . . . . . . . . . . . . . . . . . . 1 . . . . . . . . . . find_chute 5 | . . . . . . . . . . . 2 . 1 . . . 1 . 1 . . . . . . . . . . ignore_repairs 9 | . . . . . . . . . . . . . . . . . . . . . 5 . 1 . 3 . . . . randomize_corridors 1 | . . . . . . . . . . . . . . . . . . . 1 . . . . . . . . . . map_earth 1 | . . . . . . . . . . . . . . . . . . . 1 . . . . . . . . . . find_fabricator 16 | . . . . . . . . . . . 2 . . . . . 3 . 2 . 5 . . . 3 . 1 . . drop_inventory 16 | . . . . . . . . . . . 1 . . . 3 . 2 . 3 . 5 . . . 2 . . . . locate_stockpiles 3 | . . . . . . . . . . . . . . . . . . . 1 . 1 . . . . . 1 . . ignore_parts 10 | . . . . . . . . . . . . . . . . . 1 . . . 6 . 1 . 2 . . . . purge_threat 5 | . . . . . . . . . . . . . 1 . . . . . 4 . . . . . . . . . . map_route 16 | . . . . . . . . . . . 2 . 1 . 1 . . . 1 . 1 . 5 . 3 . 2 . . ignore_targets 3 | . . . . . . . . . . . . . . 3 . . . . . . . . . . . . . . . find_garrison 7 | . . . . . . . . . . . 1 . 1 . 1 . 1 . 1 . 2 . . . . . . . . overload_power 4 | . . . . . . . . . . . . 1 . . . . . . 1 . 1 . . . . . 1 . . amplify_resonance 8 | . . . . . . . . . . . 1 . . . . 1 1 . . . 1 1 . 1 . . 2 . . reboot_system 8 | . . . . . . . . . . . . . . . . . . . 1 3 . 2 . 1 1 . . . . go_dormant 1 | . . . . . . . . . . . . . . . . . . . . 1 . . . . . . . . . overwrite_iff 27 | . . . . . . . . . . . 4 2 . . . 1 . 2 3 2 . . 2 3 3 2 1 2 . streamctrl_low 7 | . . . . . . . . . . . . . . . . . . . 3 . 4 . . . . . . . . formatsys_low 18 | . . . . . . . . . . . . . 2 . 2 . 1 . 4 . 5 . . . . . 2 . 2 formatsys_high 125 | . . . . . . . . . . . 11 12 2 . 7 3 6 6 8 11 12 11 3 4 6 13 2 4 4 Relay Couplers Released 189 | . . . . . . . . 11 4 14 3 24 . . 8 14 3 15 7 15 8 14 . 15 . 16 1 15 2 Ejected 7 | . . . . . . . . . . . 3 . . . 4 . . . . . . . . . . . . . . Machine Destruction 160 | . . . . . . . . 11 . 14 . 24 . . . 14 . 15 . 15 4 14 . 15 . 16 1 15 2 Programmers 22 | . . . . . . . . . 4 . . . . . 4 . 3 . 7 . 4 . . . . . . . . Attached 102 | . . . . . . . . . . . 11 7 4 . 6 3 6 4 11 5 13 4 4 2 4 4 5 1 8 Robots Rewired 3 | . . . . . . . . . . . . . . . . . . . . . . . . 3 . . . . . Allies Hacked 15 | . . . . . . . . . . . . . . . . . 2 . 1 . . . . . 4 . 4 . 4 Hacks Repelled 1 | . . . . . . . . . . . . . . . . . 1 . . . . . . . . . . . . Allies | -11 -10 -10 -9 -9 -9 -8 -8 -8 -8 -8 -7 -7 -6 -6 -6 -6 -5 -5 -4 -4 -4 -4 -3 -3 -2 -2 -1 -1 -1 -------- Run | Scr Mat Min Mat Min Exi Min Mat Gar Mat Gar Fac Gar Fac Was Fac Gar Fac Gar Fac Gar Fac Gar Res Gar Res Gar Acc Gar Acc Total Allies 307 | . . 2 . 3 . . . . . . 15 14 4 20 9 9 7 8 19 14 37 16 7 17 15 21 30 16 24 Largest Group 21 | . . 2 2 3 3 3 . . . . 3 6 8 21 10 4 5 3 5 6 9 9 8 7 9 15 15 12 11 Highest-Rated Group 994 | . . 46 46 40 40 40 . . . . 82 128 189 768 254 134 200 109 221 246 368 431 375 407 540 994 940 790 806 Highest-Rated Ally 222 | . . 31 31 16 16 16 . . . . 32 32 41 50 41 47 49 81 56 115 58 115 115 115 69 147 147 222 222 Total Orders 77 | . . . . . . . . . . . 4 . 4 1 2 . 4 2 12 9 13 8 . 5 3 5 1 . 4 STAY 13 | . . . . . . . . . . . . . 1 . . . 1 . . 5 . 3 . 2 . 1 . . . GOTO 13 | . . . . . . . . . . . 2 . . . . . 2 1 3 . 2 1 . . . 2 . . . ROAM 1 | . . . . . . . . . . . . . . . . . . . 1 . . . . . . . . . . FOLLOW 27 | . . . . . . . . . . . 2 . 2 . . . 1 1 2 4 6 3 . 3 1 2 . . . AID 12 | . . . . . . . . . . . . . 1 1 2 . . . . . 2 1 . . . . 1 . 4 DROP 6 | . . . . . . . . . . . . . . . . . . . 3 . 3 . . . . . . . . EXPLORE 5 | . . . . . . . . . . . . . . . . . . . 3 . . . . . 2 . . . . Ally Attacks 1807 | . . . 4 . . 14 . . . . 49 91 54 202 68 35 70 47 76 80 201 79 92 59 102 69 257 44 114 Total Damage 59889 | . . . 65 . . 164 . . . . 643 2105 1301 5602 2362 926 2517 1795 2372 2788 6375 2399 3446 2816 3659 2847 7838 2510 5359 Kills 317 | . . . 1 . . 3 . . . . 7 18 8 8 16 6 16 12 11 15 37 20 15 9 25 13 46 13 18 Allies Corrupted 19 | . . . . . . . . . . . . . . . . . 2 . 5 . 1 . . 2 1 . 5 . 3 Allies Melted 1 | . . . . . . . . . . . . . . . . 1 . . . . . . . . . . . . . Field Lobotomies 4 | . . . . . . . . . . . . . . . . . . . 1 . . 1 . . . . . 1 1 Intel | -11 -10 -10 -9 -9 -9 -8 -8 -8 -8 -8 -7 -7 -6 -6 -6 -6 -5 -5 -4 -4 -4 -4 -3 -3 -2 -2 -1 -1 -1 ------- Run | Scr Mat Min Mat Min Exi Min Mat Gar Mat Gar Fac Gar Fac Was Fac Gar Fac Gar Fac Gar Fac Gar Res Gar Res Gar Acc Gar Acc Robot Analysis Total 6 | . . . 2 . . . . . 4 . . . . . . . . . . . . . . . . . . . . Derelict Logs Recovered 1 | . . 1 . . . . . . . . . . . . . . . . . . . . . . . . . . . Drone Launches 28 | . . . . . . . . . . . . . . . . . 2 . 18 . . . 2 . 6 . . . . Drone Recoveries . | . . . . . . . . . . . . . . . . . . . . . . . . . . . . . . Exploration | -11 -10 -10 -9 -9 -9 -8 -8 -8 -8 -8 -7 -7 -6 -6 -6 -6 -5 -5 -4 -4 -4 -4 -3 -3 -2 -2 -1 -1 -1 ------------- Run | Scr Mat Min Mat Min Exi Min Mat Gar Mat Gar Fac Gar Fac Was Fac Gar Fac Gar Fac Gar Fac Gar Res Gar Res Gar Acc Gar Acc Turns Passed 40288 | 40 517 217 769 39 1026 438 511 999 1602 1948 1580 2421 798 1139 950 1707 1711 2238 2282 2721 1999 2259 1111 2045 1055 2780 1048 1993 345 Spaces Moved 17375 | 24 289 171 306 25 661 220 186 395 734 1038 843 1275 445 566 406 811 794 946 834 1063 756 872 409 806 371 846 385 785 113 Core 28 | . . . . . . . . . . . . . . . . . . . . . . . . . . . . . 28 Treads 744 | . 14 . 30 . . 2 26 383 289 . . . . . . . . . . . . . . . . . . . . Legs 33 | 24 9 . . . . . . . . . . . . . . . . . . . . . . . . . . . . Wheels 16570 | . 266 171 276 25 661 218 160 12 445 1038 843 1275 445 566 406 811 794 946 834 1063 756 872 409 806 371 846 385 785 85 Hover . | . . . . . . . . . . . . . . . . . . . . . . . . . . . . . . Flight . | . . . . . . . . . . . . . . . . . . . . . . . . . . . . . . Fastest Speed 50 | 120 90 100 120 140 90 170 140 210 140 130 130 160 160 160 160 160 160 180 180 190 190 200 215 200 210 220 210 210 50 Average Speed 184 | 120 103 119 140 140 150 170 198 219 175 139 146 162 160 173 165 169 170 203 200 194 199 214 219 211 225 235 217 220 182 Slowest Speed 260 | 120 180 120 220 140 170 240 260 220 220 150 180 170 170 190 170 200 260 210 230 200 220 230 250 215 240 240 220 230 230 Overloaded Moves . | . . . . . . . . . . . . . . . . . . . . . . . . . . . . . . Propulsion Burnouts . | . . . . . . . . . . . . . . . . . . . . . . . . . . . . . . Robots Hopped . | . . . . . . . . . . . . . . . . . . . . . . . . . . . . . . Cave-ins Triggered . | . . . . . . . . . . . . . . . . . . . . . . . . . . . . . . Exploration Rate (%) 50 | 3 44 46 43 10 90 47 19 59 59 87 25 70 12 95 12 82 20 88 50 92 22 98 13 97 23 95 15 99 5 Regions Visited 29 Branch Regions 4 Pre-discovered Areas 5 | . 2 . . . 1 . . . . . . . 1 . 1 . . . . . . . . . . . . . . Known Exits Taken 12 | . 1 . 1 . . . 1 . 1 . 1 . . . 1 . 1 . 1 . 1 . 1 . 1 . 1 . . Unknown Exits Taken 5 | 1 . 1 . 1 1 1 . . . . . . . . . . . . . . . . . . . . . . . Scrap Searched 3 | . . 1 . . . 2 . . . . . . . . . . . . . . . . . . . . . . . Spaces Dug 302 | . 27 11 21 . . . 1 . 15 . 3 . . . 1 3 4 23 15 3 36 42 15 5 18 13 18 25 3 Terrain Destroyed 684 | . 29 11 56 . . 29 40 17 33 39 5 5 6 3 20 23 16 42 79 10 51 43 29 8 24 17 19 25 5 Melee 121 | . . . . . . . 1 . 14 . 3 . . . 1 3 4 6 . . . 41 1 3 . 8 12 24 . Projectile 189 | . . . . . . . . . 19 . 2 . . . 8 1 12 2 37 10 31 2 15 4 24 9 7 1 5 AOE 374 | . 29 11 56 . . 29 39 17 . 39 . 5 6 3 11 19 . 34 42 . 20 . 13 1 . . . . . Actions | -11 -10 -10 -9 -9 -9 -8 -8 -8 -8 -8 -7 -7 -6 -6 -6 -6 -5 -5 -4 -4 -4 -4 -3 -3 -2 -2 -1 -1 -1 --------- Run | Scr Mat Min Mat Min Exi Min Mat Gar Mat Gar Fac Gar Fac Was Fac Gar Fac Gar Fac Gar Fac Gar Res Gar Res Gar Acc Gar Acc Total 23540 | 28 400 183 490 29 695 255 284 476 942 1435 1100 1517 519 673 582 1014 1061 1177 1319 1645 1140 1127 578 1040 538 1587 519 978 209 Wait 1828 | . 2 7 3 5 . 2 20 10 80 162 44 39 19 41 10 12 61 53 126 380 81 31 26 . 20 580 5 9 . Move 17350 | 23 288 170 305 24 660 219 186 394 733 1037 842 1274 445 565 406 810 793 945 833 1062 755 871 408 805 371 845 384 784 113 Hop . | . . . . . . . . . . . . . . . . . . . . . . . . . . . . . . Pick Up 528 | . 10 2 26 . 24 2 18 10 19 41 32 21 10 6 18 17 14 35 41 25 27 17 18 26 11 28 11 17 2 Fast Attach 89 | 1 1 . 4 . 1 1 3 . 6 1 8 2 . 6 5 1 11 1 13 5 6 . 5 5 2 . . . 1 Attach 278 | . 1 . 12 . 3 . 5 4 6 6 11 10 9 1 16 16 17 12 31 10 23 6 20 3 18 11 7 8 12 Detach 88 | . . . . . . 1 2 . 3 1 4 4 3 . 4 3 15 3 12 2 10 2 4 2 7 3 . 2 1 Swap 450 | . 24 2 32 . . 9 16 11 9 15 31 25 3 7 29 7 22 21 32 24 33 15 7 20 8 11 11 12 14 Drop 361 | . 8 1 16 . 7 3 8 7 23 34 29 11 8 12 13 2 18 10 27 11 24 2 21 22 5 17 4 11 7 Fire 1815 | 4 65 1 92 . . 17 25 32 49 66 88 91 22 21 78 60 79 56 193 86 181 75 68 64 93 56 78 22 53 Melee 274 | . . . . . . . 1 . 14 . 3 . . 14 3 30 6 9 2 . . 61 1 45 . 20 19 41 5 Ram 1 | . . . . . . . . . . . . . . . . . . . . . . . . . . . . . 1 Kick . | . . . . . . . . . . . . . . . . . . . . . . . . . . . . . . Crush 2 | . 1 . . . . 1 . . . . . . . . . . . . . . . . . . . . . . . Escape Stasis 438 | . . . . . . . . 8 . 72 8 40 . . . 56 24 32 . 40 . 47 . 23 . 16 . 72 . Rewire 25 | . . . . . . . . . . . . . . . . . . . . . . . . 25 . . . . . Trap . | . . . . . . . . . . . . . . . . . . . . . . . . . . . . . . Miscellaneous 13 | . . . . . . . . . . . . . . . . . 1 . 9 . . . . . 3 . . . . Route ------- -11/Scrapyard -10/Materials (discovered 4 exits: *Mat x2 / *Min x2) -10/Mines -9/Materials (discovered 2 exits: *Min x2) -9/Mines -9/Exiles (discovered 2 exits: *Min x2) -8/Mines -8/Materials (discovered 2 exits: *Fac / Gar) -8/Garrison -8/Materials (discovered 2 exits: *Fac / Gar) -8/Garrison (discovered 3 exits: *Fac x3) -7/Factory (discovered 6 exits: *Fac x2 / [*Sto] / [*Low x2] / Gar) -7/Garrison (discovered 2 exits: *Fac x2) -6/Factory -6/Waste -6/Factory -6/Garrison (discovered 3 exits: *Fac x3) -5/Factory (discovered 3 exits: [*Upp x2] / Gar) -5/Garrison (discovered 3 exits: *Fac x3) -4/Factory (discovered 4 exits: *Res / [*Upp] / [*Arm] / Gar) -4/Garrison (discovered 3 exits: *Fac x3) -4/Factory (discovered 2 exits: *Res / Gar) -4/Garrison (discovered 3 exits: *Res x3) -3/Research (discovered 5 exits: Res x2 / [Qua x2] / Gar) -3/Garrison (discovered 3 exits: *Res x3) -2/Research (discovered 2 exits: *Acc / Gar) -2/Garrison (discovered 3 exits: *Acc x3) -1/Access -1/Garrison (discovered 3 exits: [*Acc x3]) -1/Access History --------- Turn | Location | Event 12 | -11/Scrapyard | Discovered new exit (range 3) 41 | -11/Scrapyard | Entered Materials 132 | -10/Materials | Identified exit to Mines 284 | -10/Materials | Discovered new exit (range 5) 355 | -10/Materials | Build established: Mutant 424 | -10/Materials | Discovered new exit (range 11) 538 | -10/Materials | Core integrity fell below 50% 558 | -10/Materials | Entered Mines 610 | -10/Mines | Discovered new exit (range 9) 652 | -10/Mines | Learned Materials stockpile data 775 | -10/Mines | Entered Materials 775 | -9/Materials | Accompanied by 2 allies 775 | -9/Materials | Evolved 2 slots: Utility x2 780 | -9/Materials | Led the pair of lost Derelicts to an unsafe place 793 | -9/Materials | Identified exit to Mines 1432 | -9/Materials | Destroyed 8 combat bots 1544 | -9/Materials | Entered Mines 1550 | -9/Mines | Assisted by bots powering up and referring to "LRC-V3" 1571 | -9/Mines | Deemed a non-threat by the Exiles lab entrance 1571 | -9/Mines | Discovered new exit (range 5) 1583 | -9/Mines | Entered Exiles 1583 | -9/Exiles | Accompanied by 3 allies 1604 | -9/Exiles | Discovered new exit (range 15) 1617 | -9/Exiles | Met 8R-AWN 1641 | -9/Exiles | Met EX-HEX 1679 | -9/Exiles | Met EX-BIN 1700 | -9/Exiles | Aligned with FarCom system 1701 | -9/Exiles | Given EX-Vault access code 1733 | -9/Exiles | Opened EX-Vault 1748 | -9/Exiles | Found Field Lobotomy Kit 1751 | -9/Exiles | Found AWS/Thermal 1760 | -9/Exiles | Found Latent Energy Streamer 1792 | -9/Exiles | Warned to stay clear of 0b10 Research branches 1894 | -9/Exiles | Met EX-DEC 1923 | -9/Exiles | Visited The Gauntlet 2098 | -9/Exiles | Learned location of Zion (-7) 2240 | -9/Exiles | Discovered new exit (range 10) 2455 | -9/Exiles | Build established: Hauler-Mutant 2609 | -9/Exiles | Stole three prototypes: AWS/Thermal, Latent Energy Streamer, Field Lobotomy Kit 2609 | -9/Exiles | Entered Mines 2609 | -8/Mines | Accompanied by 3 allies 2916 | -8/Mines | Discovered new exit (range 5) 3047 | -8/Mines | Entered Materials 3047 | -8/Materials | Evolved 2 slots: Utility x2 3410 | -8/Materials | Destroyed 7 combat bots 3425 | -8/Materials | Discovered new exit (range 15) 3469 | -8/Materials | Garrison activated, responded to threat 3558 | -8/Materials | Identified exit to Garrison 3558 | -8/Materials | Entered Garrison 3613 | -8/Garrison | Triggered checkpoint 3684 | -8/Garrison | Triggered checkpoint 3783 | -8/Garrison | Discovered new exit (range 8) 3809 | -8/Garrison | Installed Relay Interface Framework 3854 | -8/Garrison | Triggered checkpoint 3923 | -8/Garrison | Garrison Relay disabled 4137 | -8/Garrison | Garrison Relay disabled 4270 | -8/Garrison | Triggered checkpoint 4412 | -8/Garrison | Garrison Relay disabled 4557 | -8/Garrison | Entered Materials 5101 | -8/Materials | Discovered new exit (range 5) 5785 | -8/Materials | Garrison activated, responded to threat 5867 | -8/Materials | Identified exit to Garrison 6159 | -8/Materials | Entered Garrison 6257 | -8/Garrison | Triggered checkpoint 6331 | -8/Garrison | Discovered new exit (range 12) 6499 | -8/Garrison | Triggered checkpoint 6659 | -8/Garrison | Discovered new exit (range 15) 6691 | -8/Garrison | Expanded RIF knowledge: Alert ID Control 6722 | -8/Garrison | Triggered checkpoint 6744 | -8/Garrison | Garrison Relay disabled 6870 | -8/Garrison | Triggered checkpoint 6964 | -8/Garrison | Discovered new exit (range 10) 7044 | -8/Garrison | Triggered checkpoint 7106 | -8/Garrison | Garrison Relay disabled 7462 | -8/Garrison | Triggered checkpoint 7500 | -8/Garrison | Garrison Relay disabled 7620 | -8/Garrison | Triggered checkpoint 7644 | -8/Garrison | Garrison Relay disabled 7962 | -8/Garrison | Triggered checkpoint 8107 | -8/Garrison | Entered Factory 8107 | -7/Factory | Evolved 2 slots: Utility x2 8109 | -7/Factory | FarCom data flow suspended 8473 | -7/Factory | Build established: Bothacker-Mutant 8810 | -7/Factory | Discovered new exit (range 16) 8942 | -7/Factory | Discovered new exit (range 14) 9069 | -7/Factory | Fabricated Humpback? 9116 | -7/Factory | Discovered new exit (range 38) 9116 | -7/Factory | Discovered new exit (range 129) 9305 | -7/Factory | Discovered new exit (range 15) 9349 | -7/Factory | Fabricated Humpback? 9395 | -7/Factory | Fabricated Humpback? 9453 | -7/Factory | Fabricated Humpback? 9520 | -7/Factory | Local fabrication network quarantined 9679 | -7/Factory | Identified exit to Garrison 9687 | -7/Factory | Entered Garrison 9687 | -7/Garrison | Accompanied by 3 allies 9722 | -7/Garrison | Triggered checkpoint 9759 | -7/Garrison | Garrison Relay disabled 9836 | -7/Garrison | Triggered checkpoint 10018 | -7/Garrison | Triggered checkpoint 10056 | -7/Garrison | Triggered checkpoint 10093 | -7/Garrison | Triggered checkpoint 10247 | -7/Garrison | Spotted B-75 Beast 10247 | -7/Garrison | Spotted B-75 Beast 10269 | -7/Garrison | Allies destroyed B-75 Beast 10290 | -7/Garrison | Destroyed B-75 Beast 10364 | -7/Garrison | Build established: Hauler-Mutant 10405 | -7/Garrison | Discovered new exit (range 15) 10451 | -7/Garrison | Triggered checkpoint 10761 | -7/Garrison | Discovered new exit (range 11) 10865 | -7/Garrison | Expanded RIF knowledge: Coupler Efficiency 10907 | -7/Garrison | Triggered checkpoint 10933 | -7/Garrison | Garrison Relay disabled 11148 | -7/Garrison | Triggered checkpoint 11248 | -7/Garrison | Build established: Bothacker-Mutant 11289 | -7/Garrison | Garrison Relay disabled 11414 | -7/Garrison | Garrison Relay disabled 11587 | -7/Garrison | Garrison Relay disabled 11607 | -7/Garrison | Triggered checkpoint 11742 | -7/Garrison | Triggered checkpoint 11798 | -7/Garrison | Garrison Relay disabled 12108 | -7/Garrison | Entered Factory 12108 | -6/Factory | Accompanied by 4 allies 12108 | -6/Factory | Evolved 2 slots: Utility x2 12583 | -6/Factory | Discovered new exit (range 12) 12648 | -6/Factory | Fabricated Humpback? 12717 | -6/Factory | Fabricated Humpback (x1) 12808 | -6/Factory | First assault squad dispatched 12906 | -6/Factory | Sucked down chute 12906 | -6/Factory | Entered Waste 12907 | -6/Waste | Met a frightened Derelict 12919 | -6/Waste | Spotted C-40 Crusher 12924 | -6/Waste | Spotted C-40 Crusher 12950 | -6/Waste | Warlord forces began an assault 12956 | -6/Waste | Allies destroyed C-40 Crusher 12960 | -6/Waste | Allies destroyed C-40 Crusher 12961 | -6/Waste | Spotted C-40 Crusher 12980 | -6/Waste | Spotted C-40 Crusher 12988 | -6/Waste | Allies destroyed C-40 Crusher 12994 | -6/Waste | Spotted C-40 Crusher 13000 | -6/Waste | Allies destroyed C-40 Crusher 13055 | -6/Waste | 5 allies followed down the chute 13064 | -6/Waste | Spotted C-40 Crusher 13069 | -6/Waste | Allies destroyed C-40 Crusher 13101 | -6/Waste | Allies destroyed C-40 Crusher 13205 | -6/Waste | Discovered new exit (range 12) 13439 | -6/Waste | Found Damper Plating 14045 | -6/Waste | Entered Factory 14045 | -6/Factory | Accompanied by 8 allies 14121 | -6/Factory | Fabricated Humpback (x1) 14157 | -6/Factory | Fabricated Humpback (x1) 14431 | -6/Factory | Identified exit to Garrison 14450 | -6/Factory | P-70 Sage assimilated allied YG-VIN(b) 14769 | -6/Factory | Garrison activated, responded to threat 14995 | -6/Factory | Identified exit to Garrison 14995 | -6/Factory | Entered Garrison 14995 | -6/Garrison | Accompanied by 1 ally 15004 | -6/Garrison | Expanded RIF knowledge: Autoassimilate 15071 | -6/Garrison | Triggered checkpoint 15161 | -6/Garrison | Garrison Relay disabled 15284 | -6/Garrison | Triggered checkpoint 15310 | -6/Garrison | Triggered checkpoint 15320 | -6/Garrison | Triggered checkpoint 15341 | -6/Garrison | Lost 5 parts (1p1n2u1w) 15400 | -6/Garrison | Triggered checkpoint 15447 | -6/Garrison | Garrison Relay disabled 15556 | -6/Garrison | Discovered new exit (range 13) 15652 | -6/Garrison | Triggered checkpoint 15747 | -6/Garrison | Discovered new exit (range 12) 15750 | -6/Garrison | Build established: Botlord-Mutant 15875 | -6/Garrison | Discovered new exit (range 15) 15926 | -6/Garrison | Triggered checkpoint 16004 | -6/Garrison | Garrison Relay disabled 16158 | -6/Garrison | Triggered checkpoint 16202 | -6/Garrison | Garrison Relay disabled 16702 | -6/Garrison | Entered Factory 16702 | -5/Factory | Accompanied by 4 allies 16702 | -5/Factory | Evolved 2 slots: Utility x2 17542 | -5/Factory | Discovered new exit (range 7) 17916 | -5/Factory | Discovered new exit (range 14) 17949 | -5/Factory | Fabricated Enh. Nova Cannon? 18083 | -5/Factory | Local fabrication network quarantined 18098 | -5/Factory | Fabricated Enh. Nova Cannon (x1) 18220 | -5/Factory | Garrison activated, responded to threat 18303 | -5/Factory | Found Prototype Processor 18311 | -5/Factory | Identified exit to Garrison 18413 | -5/Factory | Entered Garrison 18548 | -5/Garrison | Triggered checkpoint 18607 | -5/Garrison | Found Quantum Capacitor 18657 | -5/Garrison | Spotted B-75 Beast 18672 | -5/Garrison | Assimilated Beast 6a with formatsys_high 18730 | -5/Garrison | Build established: Hauler-Mutant 18930 | -5/Garrison | Triggered checkpoint 19008 | -5/Garrison | Triggered checkpoint 19056 | -5/Garrison | Triggered checkpoint 19058 | -5/Garrison | Triggered checkpoint 19208 | -5/Garrison | Discovered new exit (range 14) 19245 | -5/Garrison | Expanded RIF knowledge: Coupler Efficiency 19302 | -5/Garrison | Triggered checkpoint 19349 | -5/Garrison | Garrison Relay disabled 19393 | -5/Garrison | Triggered checkpoint 19636 | -5/Garrison | Garrison Relay disabled 19655 | -5/Garrison | Build established: Botlord-Mutant 19864 | -5/Garrison | Discovered new exit (range 11) 19928 | -5/Garrison | Triggered checkpoint 19972 | -5/Garrison | Garrison Relay disabled 20149 | -5/Garrison | Discovered new exit (range 14) 20203 | -5/Garrison | Triggered checkpoint 20236 | -5/Garrison | Garrison Relay disabled 20468 | -5/Garrison | Found Quantum Capacitor 20492 | -5/Garrison | Found Quantum Capacitor 20651 | -5/Garrison | Entered Factory 20651 | -4/Factory | Accompanied by 2 allies 20651 | -4/Factory | Evolved 2 slots: Utility x2 21003 | -4/Factory | Discovered new exit (range 11) 21539 | -4/Factory | Assimilated G-67 Veteran with FLK Orb 21813 | -4/Factory | Discovered new exit (range 61) 22253 | -4/Factory | Fabricated Humpback (x1) 22278 | -4/Factory | Fabricated Humpback (x1) 22303 | -4/Factory | Fabricated Humpback (x1) 22428 | -4/Factory | Lost 5 parts (1p4u) 22602 | -4/Factory | Spotted B-86 Titan 22747 | -4/Factory | Identified exit to Garrison 22801 | -4/Factory | Discovered new exit (range 8) 22933 | -4/Factory | Entered Garrison 23366 | -4/Garrison | Triggered checkpoint 23448 | -4/Garrison | Garrison Relay disabled 23654 | -4/Garrison | Triggered checkpoint 23675 | -4/Garrison | Spotted B-86 Titan 23679 | -4/Garrison | Assimilated Titan 7a with formatsys_high 23724 | -4/Garrison | Triggered checkpoint 23766 | -4/Garrison | Triggered checkpoint 23875 | -4/Garrison | Discovered new exit (range 13) 23954 | -4/Garrison | Triggered checkpoint 24001 | -4/Garrison | Garrison Relay disabled 24401 | -4/Garrison | Discovered new exit (range 10) 24458 | -4/Garrison | Triggered checkpoint 24486 | -4/Garrison | Garrison Relay disabled 24560 | -4/Garrison | Triggered checkpoint 24670 | -4/Garrison | Discovered new exit (range 11) 24699 | -4/Garrison | Expanded RIF knowledge: Autooverride 24746 | -4/Garrison | Triggered checkpoint 24791 | -4/Garrison | Garrison Relay disabled 25654 | -4/Garrison | Entered Factory 25654 | -4/Factory | Accompanied by 6 allies 25922 | -4/Factory | Fabricated Humpback (x1) 26346 | -4/Factory | Fabricated Humpback (x1) 26393 | -4/Factory | Fabricated Humpback (x1) 26418 | -4/Factory | Fabricated Humpback (x1) 26491 | -4/Factory | Identified Exp. Signal Interpreter 26941 | -4/Factory | Discovered new exit (range 15) 26993 | -4/Factory | Fabricated Humpback (x1) 27200 | -4/Factory | Identified exit to Garrison 27387 | -4/Factory | Allied Derelicts emerged from ambush trap array 27404 | -4/Factory | First assault squad dispatched 27633 | -4/Factory | Identified exit to Garrison 27636 | -4/Factory | Garrison activated, responded to threat 27653 | -4/Factory | Entered Garrison 27653 | -4/Garrison | Accompanied by 3 allies 27748 | -4/Garrison | Triggered checkpoint 27803 | -4/Garrison | P-70 Sage assimilated allied Veteran 7k 27896 | -4/Garrison | Garrison Relay disabled 27985 | -4/Garrison | Spotted B-86 Titan 28005 | -4/Garrison | Assimilated B-86 Titan with FLK Orb 28022 | -4/Garrison | Triggered checkpoint 28219 | -4/Garrison | Discovered new exit (range 5) 28308 | -4/Garrison | Triggered checkpoint 28344 | -4/Garrison | Garrison Relay disabled 28430 | -4/Garrison | Triggered checkpoint 28484 | -4/Garrison | Triggered checkpoint 28712 | -4/Garrison | Discovered new exit (range 12) 28747 | -4/Garrison | Expanded RIF knowledge: Structural Interface 28848 | -4/Garrison | Garrison Relay disabled 28862 | -4/Garrison | Triggered checkpoint 29090 | -4/Garrison | Triggered checkpoint 29642 | -4/Garrison | Triggered checkpoint 29698 | -4/Garrison | Garrison Relay disabled 29785 | -4/Garrison | Discovered new exit (range 13) 29912 | -4/Garrison | Entered Research 29912 | -3/Research | Accompanied by 8 allies 29912 | -3/Research | Evolved 2 slots: Utility x2 29999 | -3/Research | Discovered new exit (range 131) 30023 | -3/Research | Discovered new exit (range 30) 30337 | -3/Research | P-80 Master assimilated allied Swordsman 7d 30455 | -3/Research | Found Hvy. Reflective Plating 30619 | -3/Research | Destroyed 9 combat bots 30625 | -3/Research | Lost 4 parts (1u3w) 30650 | -3/Research | Discovered new exit (range 158) 30650 | -3/Research | Discovered new exit (range 170) 30802 | -3/Research | Identified exit to Garrison 31023 | -3/Research | Entered Garrison 31023 | -3/Garrison | Accompanied by 3 allies 31109 | -3/Garrison | Garrison Relay disabled 31172 | -3/Garrison | Triggered checkpoint 31183 | -3/Garrison | Spotted B-86 Titan 31184 | -3/Garrison | Autoassimilated Titan 8a with RIF 31194 | -3/Garrison | Triggered checkpoint 31208 | -3/Garrison | Triggered checkpoint 31230 | -3/Garrison | Triggered checkpoint 31250 | -3/Garrison | Triggered checkpoint 31333 | -3/Garrison | Garrison Relay disabled 31423 | -3/Garrison | Discovered new exit (range 4) 31625 | -3/Garrison | Discovered new exit (range 13) 31662 | -3/Garrison | Expanded RIF knowledge: Coupler Efficiency 31756 | -3/Garrison | Triggered checkpoint 31857 | -3/Garrison | Garrison Relay disabled 32076 | -3/Garrison | Triggered checkpoint 32107 | -3/Garrison | Garrison Relay disabled 32153 | -3/Garrison | Spotted B-86 Titan 32181 | -3/Garrison | Allies destroyed B-86 Titan 32222 | -3/Garrison | Discovered new exit (range 7) 33068 | -3/Garrison | Entered Research 33068 | -2/Research | Accompanied by 7 allies 33068 | -2/Research | Evolved 2 slots: Utility x2 33542 | -2/Research | Garrison activated, responded to threat 33584 | -2/Research | Fabricated Humpback (x1) 33621 | -2/Research | Fabricated Humpback (x1) 33650 | -2/Research | Garrison activated, responded to threat 33756 | -2/Research | Found Prototype Processor 33941 | -2/Research | Lost 5 parts (4u1w) 34013 | -2/Research | Discovered new exit (range 36) 34111 | -2/Research | Identified exit to Garrison 34123 | -2/Research | Entered Garrison 34123 | -2/Garrison | Accompanied by 1 ally 34931 | -2/Garrison | Garrison Relay disabled 35025 | -2/Garrison | Spotted B-90 Cyclops 35044 | -2/Garrison | Assimilated Cyclops 9a with formatsys_high 35054 | -2/Garrison | Triggered checkpoint 35054 | -2/Garrison | Triggered checkpoint 35069 | -2/Garrison | Triggered checkpoint 35170 | -2/Garrison | Discovered new exit (range 5) 35343 | -2/Garrison | Discovered new exit (range 7) 35438 | -2/Garrison | Triggered checkpoint 35522 | -2/Garrison | Discovered new exit (range 21) 35583 | -2/Garrison | Expanded RIF knowledge: Autoassimilate 35804 | -2/Garrison | Triggered checkpoint 35861 | -2/Garrison | Garrison Relay disabled 36260 | -2/Garrison | Triggered checkpoint 36293 | -2/Garrison | Garrison Relay disabled 36452 | -2/Garrison | Triggered checkpoint 36514 | -2/Garrison | Garrison Relay disabled 36903 | -2/Garrison | Entered Access 36903 | -1/Access | Accompanied by 13 allies 36903 | -1/Access | Evolved 2 slots: Utility x2 37318 | -1/Access | P-80 Master assimilated allied Enforcer 10d 37496 | -1/Access | P-80 Master assimilated allied Enforcer 10e 37768 | -1/Access | Found Antimissile System 37782 | -1/Access | Identified Exp. Target Analyzer 37934 | -1/Access | Identified exit to Garrison 37946 | -1/Access | Garrison activated, responded to threat 37951 | -1/Access | Entered Garrison 37951 | -1/Garrison | Accompanied by 1 ally 38104 | -1/Garrison | Spotted B-99 Colossus 38114 | -1/Garrison | Triggered checkpoint 38121 | -1/Garrison | Triggered checkpoint 38130 | -1/Garrison | Assimilated B-99 Colossus with FLK Orb 38285 | -1/Garrison | Discovered new exit (range 12) 38564 | -1/Garrison | Discovered new exit (range 15) 38688 | -1/Garrison | Triggered checkpoint 38746 | -1/Garrison | Triggered checkpoint 38852 | -1/Garrison | Discovered new exit (range 12) 38888 | -1/Garrison | Expanded RIF knowledge: Robot Detection 38970 | -1/Garrison | Triggered checkpoint 38999 | -1/Garrison | Garrison Relay disabled 39202 | -1/Garrison | Triggered checkpoint 39228 | -1/Garrison | Garrison Relay disabled 39398 | -1/Garrison | Triggered checkpoint 39448 | -1/Garrison | Garrison Relay disabled 39642 | -1/Garrison | Triggered checkpoint 39739 | -1/Garrison | Garrison Relay disabled 39944 | -1/Garrison | Entered Access 39944 | -1/Access | Accompanied by 11 allies 39947 | -1/Access | Maximum security lockdown engaged 40123 | -1/Access | Allied Derelicts emerged from ambush trap array 40130 | -1/Access | P-80 Master assimilated allied MM-UJU(g) 40227 | -1/Access | Spotted Striker 40245 | -1/Access | Spotted Striker 40250 | -1/Access | Destroyed Striker 40272 | -1/Access | Core integrity fell below 50% 40283 | -1/Access | Assimilated P-80 Master with FLK Orb 40287 | -1/Access | Core integrity fell below 20% 40289 | -1/Access | Destroyed by G-73 Enforcer with Heavy Laser Last Messages --------------- 40269_ U-05 Engineer lays Concrete. 40269_ Acquired Field Lobotomy Kit. 40269_ Relay Coupler [Sentry] destroyed. 40270_ P-80 Master resets L-61 Swordsman, system corruption cleaned. 40272_ The unstable cave ceiling collapses. 40276_ Penetrated by Slug. 40277_ C-30 ARC bursts open, deploying its payload. 40277_ G-73 Enforcer unfolds itself. 40277_ M-36 Artificer unfolds itself. 40278_ K-01 Serf collects debris. 40281_ System corrupted: Component data lost. 40282_ U-05 Engineer builds a Wall. 40283_ Slug penetrates Wall. 40283_ System corrupted: Field Lobotomy Kit targeting data glitched. 40283_ P-80 Master assimilated. 40286_ Wave Collapse Detector explodes. 40286_ Field Lobotomy Kit destroyed. 40286_ P-80 Master destroyed. 40286_ Relay Coupler [Sentry] destroyed. 40287_ Penetrated by Slug. Map ----- +----------------------------------------------------+ | ???????????????# #??????##??? ? ? ????? | | ????????#??????# #?????????? ? ???????? | | ??????????????## #????#???? ??????????? | | ???????????????# ##????????????? ?????? | | ???????????????? ##???????????????????? | | ?????????????#???? ??????????????????????# | | ???????????????????? ??????????????? ?? ? ???? | | ???????????###########"####################+####?? | | ############ ##? | | = # #?? | | # !% [ #?? | | " # !=!=%= #?? | | """ # =%=[[%! [ #?? | | """ ] # =[!![| [%[! #?? | | " !!! / =[%=%!p m =%=%%[ #?? | | = !!!!]!# %=**###;;##########%;+###########?? | | !!!!!!# !!%!#] # * % #??????? | | !]!!|!!!#! %!/# ! % #??????? | | !!!!|!=!//] [ # %" G"" #??????? | | !!!! !!#=%[ # =*%" " #??????? | | %!!!!!%!!=!h # =% "%" #??? ??? | | ######!#]!![%=%%g # [ % #??????? | | % =!=%!!%*!] ggg !!! #??????? | | * %*%!![%*!=i g g l == #??????? | | [ = !%=%%! gg * K == + ?? | | = [ %!]=== gg p * @ = ! ###### ? | | / =!=] %! #??????? | | = =! # #??????? | | % %= # ###############?????? | | ######## ######## ## ##?????????????????? | | ??????! %!=[ #### #??#???????????????? | | ????? %*[= #??# #???????????????????? | | ???? =%!%= #??###########???????????????????? | | ?? !%/!% #???????????????????????????? ???? | | ? /!%=[! #????????????????????????????????? | | ?? "" [[=[%=*#??#???????????????????##????????? | | ??? "" ==%%=%%#????????????????????????????#???? | | ???? ??" %*%=[[=#?????????????????????#??????#???? | | ???????? =%%! /????????????????????????????????? | | ??????????? !" ??????????????????#???????????????? | | ????????????#/#??????????????????????????????????? | | ?????????????????????????????????????????????????? | | ?????????????????????????????????????????#???????? | | ?????????????????????????????????????????????????? | | ????????????????????????????????????????#????????? | | ?????????????????????????????????????????????????? | | ?????????????????????????????????????????????????? | | ?????????????????????????????????????????????????? | | ?????????????????????????????????????????????????? | | ?????????????????????????????????????????????????? | +----------------------------------------------------+ Best States ------------- Heat Dissipation 97 Energy Generation 21 Energy Capacity 950 Matter Stores 500 Matter Capacity 500 Sight Range 16 Terrain Scan Range 24 Terrain Scan Density 10 Jamming Range 16 Armor Coverage 2025 Resistance: KI 30 Resistance: TH 30 Resistance: EM 90 Power Shielding 66 Utility Shielding 66 Evasion (%) 50 Armor Integrity Analysis 66 Recoil Reduction 2 Energy Filtering 30 Offensive Hacking 10 Defensive Hacking 14 Item Schematics ----------------- Hcp. Storage Unit | -8/Mines | Hacked Humpback | -8/Materials | Scanalyzed Enh. Nova Cannon | -5/Factory | Downloaded Imp. Utility Shielding | -2/Research | Scanalyzed Robot Schematics ------------------ None Fabricated ------------ Humpback | x1 | -7/Factory Humpback | x1 | -7/Factory Humpback | x1 | -7/Factory Humpback | x1 | -7/Factory Humpback | x1 | -6/Factory Humpback | x1 | -6/Factory Humpback | x1 | -6/Factory Humpback | x1 | -6/Factory Enh. Nova Cannon | x1 | -5/Factory | Preloaded Enh. Nova Cannon | x1 | -5/Factory | Preloaded Humpback | x1 | -4/Factory Humpback | x1 | -4/Factory Humpback | x1 | -4/Factory Humpback | x1 | -4/Factory Humpback | x1 | -4/Factory Humpback | x1 | -4/Factory Humpback | x1 | -4/Factory Humpback | x1 | -4/Factory Humpback | x1 | -2/Research Humpback | x1 | -2/Research Alien Tech Used ----------------- None Achievements -------------- None Challenges ------------ None Game ------ Seed ReflectiveSuspensionSword Manual? 0 Play Time 11:55:49 Cumulative 319.3 hours Start 2020.05.02 @ 14:40:51 End 2020.05.17 @ 15:55:37 Sessions 5 Manual Loads 0 Difficulty Rogue Special Mode None Game No. 40 Rogue 40 Adventurer 0 Explorer 0 Win Type - Total 15 Types 10/2/0/0/2/0/1 Lore% 84 Gallery% 84 Achievement% 74 Wizard Run 0 Options --------- ASCII 0 Keyboard 0 Movement Numpad Keybinds 0 Fullscreen 2 Font 18/Terminus Map View 76x50 Tactical HUD 1 Map Filters NONE Filters NONE Steam 1 RUN: 5b11412f-d700-43d7-97cf-858bddb47b68